Workbook

Sheet Cover Page
D1: Add company logo
N2: Version 20.1
B8: Add photo
N13: Notes:
N14: This template may require adjustments by individual operators to meet specific reporting requirements as defined in the site Permit(s)
B29: Annual Performance Report 2020
B31: Permit PPC/A/1136072
B33: Millerhill RERC
B37: FCC Waste Services (UK) Ltd
B39: Year: | C39: 2020
B41: Address: | C41: Whitehill Road, Edinburgh, EH22 1SX
B43: Tel: | C43: Redacted
B45: Email: | C45: paula.alvarez@fccenvironment.co.uk
B47: Prepared by: | C47: Redacted | F47: Position: | G47: Redacted
B49: Approved by: | C49: Redacted | F49: Position: | G49: Redacted
B51: Version: | C51: 1
B53: Issue Date: | C53: 2021-01-27

Sheet Contents
A1: =+'Cover Page'!$B$29 -> Annual Performance Report 2020 | E1: =+'Cover Page'!$B$33 -> Millerhill RERC
A3: Contents | K3: Notes:
A4: Section | B4: Subject | H4: Page | K4: Section references and Page nos. to be inserted
B5: Facility Information | K5: Sections and Subjects may require adjustment by individual operators to meet specific reporting requirements as defined in the sites Permit(s)
B6: Operational Summary
B7: Operational Data
B8: Performance Form 1
B9: Energy Form 1
B10: Permit Compliance
B11: Improvements
B12: Public Liasion
B13: Residue Quality - Optional
B14: Emissions to Water
B15: Emissions to Air (periodically monitored)
B16: Emissions to Air (continuously monitored)
B17: Hydrogen Chloride emissions
B18: Sulphur Dioxdie emsissions
B19: Oxides of Notrigen emissions
B20: Total Organic Carbon emissions
B21: Particulate Matter emissions
B22: Carbon Monoxide emissions
B23: Ammonia emissions
A26: Version Control
A27: Section | B27: Information | H27: Date
A34: Distribution
A35: Copy | B35: Name, Role | H35: No.
A44: This report is required under the Industrial Emissions Directive’s Article 55(2) requirements on reporting and public information on waste incineration plants and co-incineration plants, which require the operator to produce an annual report on the functioning and monitoring of the plant and make it available to the public.

Sheet Facility Info
A1: =+'Cover Page'!$B$29 -> Annual Performance Report 2020 | E1: =+'Cover Page'!$B$33 -> Millerhill RERC
A3: Plant Description and Design | K3: Notes:
A5: The Millerhill Recycling and Energy Recover Centre (RERC) is a single-line thermal treatment plant utilising moving grate technology. The plant processes up to 155,000 tonnes of residual waste each year, approximately 135,000 tonnes of which comes from households within the Edinburgh and Midlothian regions. Millerhill RERC can generate up to 12MW of electricity and up to 20MW of heat. | K5: Include summary of plant design, design capacity, no. of combustion lines, electrical and heat capacity and any other general information that descibes the facility, its location and purpose
A20: Summary of Operational Processes and Procedures
A22: Waste reception: tipping hall and waste bunker, control room. Waste feed: waste ram feeder and feed hopper, grate. Energy and heat generation: primary air systems, burners, boiler, water treatment plant, ID Fan. Continuous emissions monitoring, bottom and residue transport system, cooling systems. Flue gas treatment: fabric bag filters, dry reactor. Fuel and raw material supply, HV transformer, emergency generator. Millerhill RERC have achieved certification to the standards: ISO 14001, ISO 9001 and ISO 45001 | K22: Include summary of key processes and procedures such as (but not limited to); waste reception, control rooms, grate, bed and bolier, energy & heat generation, cooling systems, residue management, emission controls, health and safety systems, maintenance

Sheet Operational Data
A1: =+'Cover Page'!$B$29 -> Annual Performance Report 2020 | E1: =+'Cover Page'!$B$33 -> Millerhill RERC
A3: Operational Data | K3: Notes:
A4: Plant Size | D4: tonnes pa | F4: MWth | H4: MWe | K4: * - RDF to include SRF
A5: No. of combustion lines | B5: 1 | D5: No. of Turbines: | F5: 1 | K5: ** - CHP plants only
K6: 2020 updates include; heat in MWh, water in Litres, NCV in MJ/kg
A7: Waste types received | B7: Unit | C7: Q1 | D7: Q2 | E7: Q3 | F7: Q4 | G7: Year Total | H7: %
A8: Household / Local Authority | B8: tonnes | C8: 39626.04 | D8: 34899.34 | E8: 38108.24 | F8: 42167.86 | G8: =SUM(C8:F8) -> 154801.48 | H8: =IF(G8>0,G8/$G$18,"-") -> 0.9881686448 | K8: Availabiity Definition: 'the availability of a line is to be calculated by the number of hours the line reported Continuously Monitored emission levels to the Regulator through the calendar year divided by the total number of hours in that year. The overall plant availability is calculated as the Mean of all lines in the plant. For clarity this includes periods of Other Than Normal Operating Conditions (OTNOC) and abnormal operation.' Rationale: The primary function of an Energy from Waste facility is the disposal of waste. It follows therefore that the availability of a plant is determined by the period of time a facility spends undertaking this activity.
A9: Commercial & Industrial | C9: 641.44 | D9: 562.94 | E9: 278.7 | F9: 370.36 | G9: =SUM(C9:F9) -> 1853.44 | H9: 0.01183135519
A10: Hazardous | G10: 0 | H10: -
A11: Clinical | G11: 0 | H11: -
A12: Waste wood (biomass) | G12: 0 | H12: -
A13: Refuse Derived Fuel * - H'hold/LA | G13: =SUM(C13:F13) -> 0 | H13: -
A14: Refuse Derived Fuel * - C&I | G14: 0 | H14: -
A15: Other [Please specify] | G15: 0 | H15: -
A16: Other [Please specify]
A17: Other [Please specify]
A18: Total waste combusted | C18: =SUM(C8:C17) -> 40267.48 | D18: =SUM(D8:D17) -> 35462.28 | E18: =SUM(E8:E17) -> 38386.94 | F18: =SUM(F8:F17) -> 42538.22 | G18: =SUM(G8:G17) -> 156654.92 | H18: =IF(G18>0,G18/$G$18,"-") -> 1
A19: Rejected Waste | G19: =SUM(C19:F19) -> 0 | H19: =IF(G19>0,G19/$G$18,"-") -> -
A20: Unprocessed waste transferred out | G20: =SUM(C20:F20) -> 0 | H20: =IF(G20>0,G20/$G$18,"-") -> -
A22: Energy Useage / Export | B22: Unit | C22: Q1 | D22: Q2 | E22: Q3 | F22: Q4 | G22: Year Total | H22: KWh/te
A23: Power Generated | B23: MWh | C23: 28986 | D23: 22063 | E23: 26697 | F23: 30554 | G23: =SUM(C23:F23) -> 108300 | H23: =IF(G23>0,G23*1000/$G$18,"-") -> 691.3284307
A24: Power Exported | C24: 26274 | D24: 22166 | E24: 24412 | F24: 27913 | G24: =SUM(C24:F24) -> 100765 | H24: =IF(G24>0,G24*1000/$G$18,"-") -> 643.2290796
A25: Power Used on site | C25: 2744.52 | D25: 2323 | E25: 2393 | F25: 2757 | G25: =SUM(C25:F25) -> 10217.52 | H25: 65.22310311
A26: Power Imported | C26: 53 | D26: 213 | E26: 94 | F26: 0 | G26: 360 | H26: 2.298044645
A27: Parasitic Load | B27: % | C27: =IF(C23>0,1-C24/(C23+C26),"-") -> 0.09521677744 | D27: =IF(D23>0,1-D24/(D23+D26),"-") -> 0.004938049919 | E27: =IF(E23>0,1-E24/(E23+E26),"-") -> 0.0887984771 | F27: =IF(F23>0,1-F24/(F23+F26),"-") -> 0.08643712771 | G27: =IF(G23>0,1-G24/(G23+G26),"-") -> 0.07265783177
A28: Thermal Energy Produced ** | B28: MWh | G28: =SUM(C28:F28) -> 0 | H28: -
A29: Thermal Energy Exported ** | G29: 0 | H29: -
A30: R1 value | G30: Design / Operational / n/a
A32: Waste Disposal & Recovery | B32: Unit | C32: Q1 | D32: Q2 | E32: Q3 | F32: Q4 | G32: Year Total | H32: % inputs
A33: APC Residues - produced | B33: tonnes | C33: 1066.28 | D33: 775.18 | E33: 925.84 | F33: 1052.76 | G33: =SUM(C33:F33) -> 3820.06 | H33: =IF(G33>0,G33/$G$18,"-") -> 0.02438519007
A34: IBA - produced | C34: 9760.6 | D34: 9323.7 | E34: 9934.36 | F34: 10765.52 | G34: 39784.18 | H34: =IF(G34>0,G34/$G$18,"-") -> 0.2539606161
A35: Metals recycling | G35: =SUM(C35:F35) -> 0 | H35: =IF(G35>0,G35/$G$18,"-") -> -
A36: Other | C36: 0 | D36: 0 | E36: 0 | F36: 0 | G36: =SUM(C36:F36) -> 0 | H36: =IF(G36>0,G36/$G$18,"-") -> -
A37: Other | C37: 0 | D37: 0 | E37: 0 | F37: 0 | G37: 0 | H37: =IF(G37>0,G37/$G$18,"-") -> -
A38: Other | C38: 0 | D38: 0 | E38: 0 | F38: 0 | G38: 0 | H38: =IF(G38>0,G38/$G$18,"-") -> -
A40: Raw Material Usage | B40: Unit | C40: Q1 | D40: Q2 | E40: Q3 | F40: Q4 | G40: Year Total | H40: kg or Ltr /te
A41: Mains Water | B41: ltrs | C41: 4963.14 | D41: 4963.14 | E41: 5017.68 | F41: 5017.68 | G41: =SUM(C41:F41) -> 19961.64 | H41: =IF(G41>0,G41/$G$18,"-") -> 0.1274242775
A42: Other Water | B42: ltrs | G42: 0 | H42: =IF(G42>0,G42/$G$18,"-") -> -
A43: Ammonia | B43: kgs | C43: 48267.31 | D43: 28510.3 | E43: 397.44 | F43: 51859.99 | G43: 129035.04 | H43: =IF(G43>0,G43/$G$18,"-") -> 0.8236896741
A44: Urea | B44: kgs | G44: =SUM(C44:F44) -> 0 | H44: =IF(G44>0,G44/$G$18,"-") -> -
A45: Activated Carbon | B45: kgs | C45: 11050 | D45: 10030 | E45: 11850 | F45: 9930 | G45: 42860 | H45: =IF(G45>0,G45/$G$18,"-") -> 0.2735949819
A46: Lime / hydrated lime | B46: kgs | C46: 405290 | D46: 354660 | E46: 386900 | F46: 455420 | G46: 1602270 | H46: 10.2280222
A47: Fuel oil | B47: ltrs | C47: 67520 | D47: 92840 | E47: 42650 | F47: 30010 | G47: 233020 | H47: 1.487473231
A48: Gas | B48: cf | C48: 0 | D48: 0 | E48: 0 | F48: 0 | G48: 0
A49: Other | C49: 0 | D49: 0 | E49: 0 | F49: 0 | G49: 0
A51: Summary | B51: Line/Unit | C51: Q1 | D51: Q2 | E51: Q3 | F51: Q4 | G51: Year Total | J51: Hrs in year
A52: Availability of waste combustion by line, hrs | B52: =+B5 -> 1 | C52: 2107.51 | D52: 1841.74 | E52: 1975.06 | F52: 2196.97 | G52: =SUM(C52:F52) -> 8121.28 | H52: 0.9245 | J52: 8760 | K52: +24, leap year
B53: 2 | G53: 0 | H53: x %
B54: 3 | G54: 0 | H54: x %
B55: 4 | G55: 0 | H55: x %
B56: 5 | G56: =SUM(C56:F56) -> 0 | H56: x %
A57: Overall Availability, mean avg. of all lines, hrs | G57: N/A | H57: x %
A58: Hours of turbine operations, hrs | B58: 1 | C58: 2073 | D58: 1829 | E58: 1945 | F58: 2208 | G58: 8055 | H58: 0.917
A59: Hours of turbine operations, hrs | B59: 2 | G59: 0 | H59: x %
A60: Hours of heat / steam export | G60: 0 | H60: =IF(B60>0,G59/J52,"n/a") -> n/a
A61: Net Calorific Value of waste | B61: MJ/kg | H61: -
A62: Abnormal Events | B62: qty. | G62: 0 | H62: =IF(G62>0,"yes","no") -> no
A63: Abnormal operation | B63: hours | C63: 0 | D63: 0 | E63: 0 | F63: 0 | G63: 0 | H63: =+(G63)/J52 -> 0
A64: Permit Breaches | B64: qty. | C64: 0 | D64: 1 | E64: 0 | F64: 0 | G64: 1 | H64: =IF(G64>0,"yes","no") -> yes

Sheet Operational Summary
A1: =+'Cover Page'!$B$29 -> Annual Performance Report 2020 | E1: =+'Cover Page'!$B$33 -> Millerhill RERC
A3: Summary of Plant Operations and Maintenance during the reporting year | K3: Notes:
A5: The plant has operated well throughout the year with a higher availability in comparison to 2019 achieved enabling throughput and electricity generation to be increased. Throughout the year emissions have been well within the permitted levels. The plant is managed 24/7 by an Operations team, led by a Shift Team Leader. Daily morning meetings take place in which the operation over the previous shift is discussed, along with any planned maintenance tasks, contractors, training etc. that is planned for that day. Operational checks are conducted for each shift (2 x 24 hours), including a daily site inspection. This is supplemented by a more comprehensive weekly site inspection. The routine and preventative maintenance of the plant is governed by a specialist software program that generates tasks to be undertaken on a daily, weekly, monthly and annual basis. In support of the general maintenance routine, site specific maintenance and call off contracts have been issued for key items of plant and equipment. National contracts are in place for other services and equipment. Two planned outages were completed to undertake the majority of the preventative maintenance programme. The decision to undertake two outages was driven by the covid-19 pandemic which prevented a full outage from being undertaken in May. The plan for 2021 is to undertake a single outage in April. Other than a change to the outage programme the main impact of covid-19 has been an increase in municipal waste. There have been no occasions where the minimum operational requirements could not be met. | K5: Include summary of key operational and/or maintenance activity undertaken in the year, such as any major component upgrades and/or replacements
A29: Summary of Residue Handling for the reporting year
A31: FCC Millerhill produces Incinerator Bottom Ash (IBA), which consists of the inorganic, non-combustible fraction of the waste, and Air Pollution Control residue (APCr), which is a product of the flue gas cleaning process. The IBA is non-hazardous and can be used for a number of end uses, subject to strict controls. The APCr is a hazardous material and must be appropriately disposed of. All IBA is taken to FCC's Greengairs site, where it is stored on a dedicated pad pending processing. Processing takes place periodically by an appropriately permitted company which uses a mobile separation plant to separate the IBA into ferrous and non-ferrous metals and various size fractions. Metals are recycled and the resultant aggregate is used where possible in road building and infrastructure within the permitted area of the landfill site itself. FCC Millerhill follows the ESA's IBA Sampling Protocol and conducts hazard analysis on representative samples of IBA twice a month. To date, none of the samples have been classed as hazardous. APCr is discharged directly from storage silos into a receiving vehicle and taken to an appropriately permitted site where it is used to neutralise alkaline wastes and then landfilled. | K31: Include in here a summary of residue handling regimes and destinations

Sheet Perf. Form 1
A1: =+'Cover Page'!C39 -> 2020 | B1: Annual Reporting Performance Form 1
A3: =+'Cover Page'!B31 -> Permit PPC/A/1136072 | F3: Operator: | G3: =+'Cover Page'!B37:I37 -> 0
A4: Facility: | B4: =+'Cover Page'!B33:I33 -> Millerhill RERC | F4: Form: | G4: Performance 1
A6: Reporting Period from: | D6: 1st Janaury 2020 | F6: to: | G6: 31st December 2020
A8: =+A1 -> 2020 | B8: Annual Reporting of Waste Disposal and Recovery
A9: Waste Description | C9: Disposal Route(s) | E9: Disposal Tonnes | G9: Recovery Tonnes | I9: % / tonne of waste incinerated
A10: 1) Hazardous Wastes
A11: APC Residues | C11: D9 | E11: 3820 | I11: =IF((E11+G11)>0,(E11+G11)/'Operational Data'!$G$18, "-") -> 0.02438480707
I12: =IF((E12+G12)>0,(E12+G12)/'Operational Data'!$G$18, "-") -> -
I13: =IF((E13+G13)>0,(E13+G13)/'Operational Data'!$G$18, "-") -> -
I14: =IF((E14+G14)>0,(E14+G14)/'Operational Data'!$G$18, "-") -> -
A15: Total Hazardous Waste | E15: =SUM(E11:F14) -> 3820 | G15: =SUM(G11:H14) -> 0 | I15: =IF((E15+G15)>0,(E15+G15)/'Operational Data'!$G$18, "-") -> 0.02438480707
A17: 2) Non-Hazardous Wastes
A18: IBA | C18: R4 | E18: 39784 | I18: =IF((E18+G18)>0,(E18+G18)/'Operational Data'!$G$18, "-") -> 0.2539594671
A19: Ferrous Metal | I19: =IF((E19+G19)>0,(E19+G19)/'Operational Data'!$G$18, "-") -> -
A20: Process Water | E20: 310.13 | I20: =IF((E20+G20)>0,(E20+G20)/'Operational Data'!$G$18, "-") -> 0.001979701627
I21: =IF((E21+G21)>0,(E21+G21)/'Operational Data'!$G$18, "-") -> -
I22: =IF((E22+G22)>0,(E22+G22)/'Operational Data'!$G$18, "-") -> -
A23: Total Non-Hazardous Waste | E23: =SUM(E18:F22) -> 40094.13 | G23: =SUM(G18:H22) -> 0 | I23: =IF((E23+G23)>0,(E23+G23)/'Operational Data'!$G$18, "-") -> 0.2559391687
A24: TOTAL WASTE | E24: =+E23+E15 -> 43914.13 | G24: =+G23+G15 -> 0 | I24: =IF((E24+G24)>0,(E24+G24)/'Operational Data'!$G$18, "-") -> 0.2803239758
A26: Operator’s comments :
A27: R4: Metal Recycling D9: Physico-chemical treatment
A31: =+A1 -> 2020 | B31: Annual Reporting of Water and Other Raw Material Usage
A32: Raw Material | E32: Usage | G32: Unit | H32: Specific Useage | J32: Unit
A33: Mains Water | E33: =+'Operational Data'!G41 -> 19961.64 | G33: m3 | H33: =IF(E33>0,E33/'Operational Data'!$G$18,"-") -> 0.1274242775 | J33: m3/te
A34: Total Water | E34: =+'Operational Data'!G42+'Operational Data'!G41 -> 19961.64 | G34: m3 | H34: =IF(E34>0,E34/'Operational Data'!$G$18,"-") -> 0.1274242775 | J34: m3/te
A35: Urea / Ammonia | E35: =+'Operational Data'!G43 -> 129035.04 | G35: kg | H35: =IF(E35>0,E35/'Operational Data'!$G$18,"-") -> 0.8236896741 | J35: kg/te
A36: Activated Carbon | E36: =+'Operational Data'!G45 -> 42860 | G36: kg | H36: =IF(E36>0,E36/'Operational Data'!$G$18,"-") -> 0.2735949819 | J36: kg/te
A37: Lime / hydrated lime / Sodium Bicarb. | E37: =+'Operational Data'!G46 -> 1602270 | G37: kg | H37: =IF(E37>0,E37/'Operational Data'!$G$18,"-") -> 10.2280222 | J37: kg/te
A39: Operator’s comments :
A43: =+A31 -> 2020 | B43: Annual Reporting of other performance indicators
A44: Parameter | C44: Results by Line
C45: A1 | D45: A2 | E45: A3 | F45: A4 | G45: A5 | I45: Turbine 1 | J45: Turbine 2
A46: Operating hours for the year, hours | C46: 8121
A47: Number of periods of abnormal operation, qty. | C47: 0
A48: Cumulative hours of abnormal operation for this year, hours | C48: 0
A50: Operator’s comments :
A54: Signed: | D54: Paula Alvarez | G54: Date: | H54: 2021-01-27

Sheet Energy Form 1
A1: =+'Cover Page'!C39 -> 2020 | B1: Annual Reporting of Energy Usage/Export
A3: =+'Cover Page'!B31 -> Permit PPC/A/1136072 | F3: Operator: | G3: =+'Cover Page'!B37:I37 -> 0
A5: Facility: | B5: =+'Cover Page'!B33:I33 -> Millerhill RERC | F5: Form: | G5: Energy 1
A7: Reporting Period from: | D7: =+'Perf. Form 1'!D6:E6 -> 1st Janaury 2020 | F7: to: | G7: =+'Perf. Form 1'!G6:H6 -> 31st December 2020
A9: Energy Source | D9: Energy Usage | F9: Unit | G9: Specific Useage (KWh/tonne incinerated
A10: Electricity Produced | D10: =+'Operational Data'!G23 -> 108300 | F10: MWh | G10: =+'Operational Data'!H23 -> 691.3284307
A11: Electricity Imported | D11: =+'Operational Data'!G26 -> 360 | F11: MWh | G11: =+'Operational Data'!H26 -> 2.298044645
A12: Electricity Exported | D12: =+'Operational Data'!G24 -> 100765 | F12: MWh | G12: =+'Operational Data'!H24 -> 643.2290796
A13: Gas Oil | F13: tonnes
A14: Steam/hot water exported | D14: =+'Operational Data'!G29 -> 0 | F14: GWh | G14: =+'Operational Data'!H29 -> -
A18: Operator’s comments :
A29: Signed: | D29: Redacted | G29: Date: | H29: 2021-01-27

Sheet Permit Compliance
A1: =+'Cover Page'!$B$29 -> Annual Performance Report 2020 | E1: =+'Cover Page'!$B$33 -> Millerhill RERC
A3: Summary of Permit Compliance
A5: Compliance with permit limits for continuously monitored pollutants
A7: The plant met its emission limits as shown in the table below:
A8: Substance | C8: Percentage time compliant during operation | L8: Notes:
C9: Half-hourly limit | F9: Daily limit | L9: Report to 2 decimal places, i.e. xx.xx% Please provide a brief summary of each notification or non-compliance in the table (rather than just referring to notifications that were sent to the Regulator).
A10: Particulates | C10: 1 | F10: 1
A11: Oxides of nitrogen | C11: 1 | F11: 1
A12: Sulphur dioxide | C12: 1 | F12: 1
A13: Carbon monoxide | C13: 100% 95% of 10-min averages | F13: 1
A14: Total organic carbon | C14: 1 | F14: 1
A15: Hydrogen chloride | C15: 1 | F15: 1
A16: Hydrogen fluoride | C16: 1 | F16: 1
C17: xx.xx %
A19: Summary of any notifications or non-compliances under the permit
A20: Date | B20: Summary of notification or non-compliance [including Line/Reference] | E20: Reason | H20: Measures taken to prevent reoccurrence
A21: 2020-03-30 | B21: Unexpected loss of power for approx 4 hours. As previously explained in relation to the incident in august 2019 the fault on the network tripped the generator before island mode operation could be initiated. Althought the emergency generator worked as designed, the ID Fan did not restart as the fix to the software issue identified after the previous incident has not yet been installed due to Covid-19. | E21: Loss of power on Scottish Power Energy Network's (SPEN) side. The emergency generator did not respond as it should have done to this loss of power. | H21: A glitch on the software has been rectified so that the auxilliary ID fan will now operate when the emergency diesel generator is operated. Scottish Power have established there was a communication issue between the relays at either end of the 33kV cable section that enables Millerhill to export or import electricity. A Protection Engineer has implemented a fix based on the manufacturer’s advice and the circuit is being monitored closely.
A27: Summary of any complaints received and actions to taken to resolve them.
A28: Date | B28: Summary of complaint [including Line/Reference] | E28: Reason * | H28: Measures taken to prevent reoccurrence
A29: 2021-02-27 | B29: Odour complaint from the Stoneyhill Area in Musselburgh regarding smoke and odours on Tuesday morning at 6am and twice previously in the past six weeks. | E29: Reviewing the emissions report from the 25th I can see particulate levels were less than 0.9 mg/m3 throughout the day with no increase around 6:00. We have no records of smoke or odour being detected at that point or over the past six weeks. The complaint was not substantiated. | H29: N/A
A30: 2020-01-15 | B30: Odour complaint from Musselburgh regarding an intermittent smell described as sharp / smoky. It is noticed during periods of low wind speed from the SW. The complainant has experienced the smell over the past few months. | E30: We have reviewed our operational records and can find nothing that would link the odour complaints with the facility. The complaint was not substantiated. | H30: N/A
E34: * including whether substantiated by the operator or the EA

Sheet Improvements
A1: =+'Cover Page'!$B$29 -> Annual Performance Report 2020 | E1: =+'Cover Page'!$B$33 -> Millerhill RERC
A3: Summary of Plant Improvements
A5: Summary of any efficiency improvements that have been completed within the year.
A6: The EPC Contractor has introduced modifications to the flue gas treatment process to reduce unplanned outages. The effects are being monitored.
A16: Summary of any permit improvement conditions that have been completed within the year and the resulting environmental benefits.
A17: None undertaken.
A27: Summary of any changes to the plant or operating techniques which required a variation to the permit and a summary of the resulting environmental impact.
A28: None undertaken.
A38: Summary of any other improvements made to the plant or planned to be made and a summary of the resulting environmental benefits.
A39: None undertaken or planned.

Sheet Public Liasion
A1: =+'Cover Page'!$B$29 -> Annual Performance Report 2020 | E1: =+'Cover Page'!$B$33 -> Millerhill RERC
A3: Details of Public & Stakeholder Liasion
A5: Summary of events held during the reporting year.
A6: Date | C6: Description
C7: non due to COV19 have been postponed
A16: List of events planned for next year
A17: Date | C17: Description
C18: to be arranged
A29: If you wish to be involved in the public liasion programme, please contact _________________

Sheet Residue Quality
A1: =+'Cover Page'!$B$29 -> Annual Performance Report 2020 | E1: =+'Cover Page'!$B$33 -> Millerhill RERC
A3: Residue Quality Monitoring Requirements
A5: Summary of monitoring undertaken and compliance
A6: FCC Millerhill follows the ESA's Ash Sampling protocol. Samples are sent for analysis twice a month and to date all samples have been non-hazardous
A13: Commentary on any specific events
A14: Date & Event | C14: Description
A27: Residue Quality Monitoring Results
A28: Parameter (unit) | C28: Limit | D28: Normal Operation
D29: Bottom ash | F29: APC Residues
A30: Loss on Ignition (average %) | C30: <5% | D30: 2.11 | F30: 2.556
A31: Total Organic Carbon (average %) | C31: <3% | D31: 1 | F31: 0.575
A32: No. of Assessments Undertaken | C32: --- | D32: 24 | F32: 4
A33: No. of Hazardous Results | C33: --- | D33: 0
A35: Comments :

Sheet Water
A1: =+'Cover Page'!$B$29 -> Annual Performance Report 2020 | E1: =+'Cover Page'!$B$33 -> Millerhill RERC
A3: Emissions to Water
A5: Summary of monitoring undertaken and compliance
A13: Commentary on any specific events
A14: Date & Event | C14: Description
A22: Emissions to Water / Sewer
A23: Parameter | D23: Monitoring Frequency | G23: Limit | H23: Target | I23: Max. | J23: Average

Sheet Air (periodic)
A1: =+'Cover Page'!$B$29 -> Annual Performance Report 2020 | E1: =+'Cover Page'!$B$33 -> Millerhill RERC
A3: Emissions to Air (periodically monitored)
A5: Summary of monitoring undertaken, standards used and compliance | M5: Notes:
M6: Template may require adjustment for any bespoke monitoring requirements of permit.
A9: Results of emissions to air that are periodically monitored
A10: Substance | C10: Ref. Period | D10: Emission Limit Value | F10: Average | M10: User to add additional tables as necessary, depending on whether quarterly or bi-annual reporting is required for the compliance year
F11: A1 | G11: A2 | H11: A3 | I11: A4 | J11: A5
A12: Hydrogen fluoride | C12: 1 hr | D12: 2 mg/m3 | F12: 0.03
A13: Cd and Th and their compounds | C13: 6-8hrs | D13: 0.05 mg/m3 | F13: 0.015
A14: Hg and its compounds | C14: 6-8hrs | D14: 0.05 mg/m3 | F14: 0.002
A15: Sb, As, Pb, Cr, Co, Cu, Mn, Ni, V and their compounds | C15: 6-8hrs | D15: 0.5 mg/m3 | F15: 0.0415
A16: Dioxins & Furans (I-TEQ) | C16: 6-8hrs | D16: 0.1 ng/m3 | F16: 0.00485
A17: PCBs (WHO-TEQ Humans / Mammals) | C17: 6-8hrs | D17: None set ng/m3 | F17: 0.00205
A18: PCBs (WHO-TEQ Fish) | C18: 6-8hrs | D18: None set ng/m3 | F18: 0.0001
A19: PCBs (WHO-TEQ Birds) | C19: 6-8hrs | D19: None set ng/m3 | F19: 0.006025
A20: Dioxins & Furans (WHO-TEQ Humans / Mammals) | C20: 6-8hrs | D20: None set ng/m3 | F20: 0.004925
A21: Dioxins & Furans (WHO-TEQ Fish) | C21: 6-8hrs | D21: None set ng/m3 | F21: 0.005275
A22: Dioxins & Furans (WHO-TEQ Birds) | C22: 6-8hrs | D22: None set ng/m3 | F22: 0.0083
A23: Anthanthrene | C23: 6-8hrs | D23: None set µg/m3 | F23: <0.03375
A24: Benzo(a)anthracene | C24: 6-8hrs | D24: None set µg/m3 | F24: <0.01235
A25: Benzo(a)pyrene | C25: 6-8hrs | D25: None set µg/m3 | F25: <0.01235
A26: Benzo(b)fluoranthene | C26: 6-8hrs | D26: None set µg/m3 | F26: <0.01235
A27: Benzo(b)naptho(2,1-d) thiophene | C27: 6-8hrs | D27: None set µg/m3 | F27: <0.016275
A28: Benzo(c)phenanthrene | C28: 6-8hrs | D28: None set µg/m3 | F28: <0.01385
A29: Benzo(ghi)perylene | C29: 6-8hrs | D29: None set µg/m3 | F29: <0.01235
A30: Benzo(k)fluoranthene | C30: 6-8hrs | D30: None set µg/m3 | F30: <0.01235
A31: Cholanthrene | C31: 6-8hrs | D31: None set µg/m3 | F31: <0.015075
A32: Chrysene | C32: 6-8hrs | D32: None set µg/m3 | F32: <0.01235
A33: Cyclopenta(cd)pyrene | C33: 6-8hrs | D33: None set µg/m3 | F33: <0.009975
A34: Dibenzo(ai)pyrene | C34: 6-8hrs | D34: None set µg/m3 | F34: <0.018275
A35: Dibenzo(ah)anthracene | C35: 6-8hrs | D35: None set µg/m3 | F35: <0.01355
A36: Fluoranthene | C36: 6-8hrs | D36: None set µg/m3 | F36: <0.022825
A37: Indeno(123-cd) pyrene | C37: 6-8hrs | D37: None set µg/m3 | F37: <0.01235
A38: Naphthalene | C38: 6-8hrs | D38: None set µg/m3 | F38: 0.4975
A39: Comments :

Sheet Air (CEMS)
A1: =+'Cover Page'!$B$29 -> Annual Performance Report 2020 | I1: =+'Cover Page'!$B$33 -> Millerhill RERC
A3: Emissions to Air (continously monitored)
P4: Notes:
A5: Summary of monitoring undertaken, standards used and compliance | P5: Template may require adjustment for any bespoke monitoring requirements of permit
P6: Report to 2 decimal places, i.e. xx.xx%
A11: Results of emissions to air that are continuously monitored (maximum and average values for each line)
A12: Substance | B12: Reference Period | C12: Emission Limit Value | D12: A1 | F12: A2 | H12: A3 | J12: A4 | L12: A5
D13: Max. | E13: Avg. | F13: Max. | G13: Avg. | H13: Max. | I13: Avg. | J13: Max. | K13: Avg. | L13: Max. | M13: Avg.
A14: Oxides of nitrogen | B14: Daily mean | C14: 200 mg/m3 | D14: =NOx!O19 -> 190 | E14: =NOx!N19 -> 169.4166667
B15: ½ hourly mean | C15: 400 mg/m3 | D15: =NOx!M19 -> 257 | E15: =NOx!L19 -> 169.4166667
A16: Particulates | B16: Daily mean | C16: 10 mg/m3 | D16: =Particulates!O19 -> 1 | E16: =Particulates!N19 -> 1
B17: ½ hourly mean | C17: 30 mg/m3 | D17: =Particulates!M19 -> 2 | E17: =Particulates!L19 -> 1
A18: Total Organic Carbon | B18: Daily mean | C18: 10 mg/m3 | D18: =TOC!O19 -> 0 | E18: =TOC!N19 -> 0
B19: ½ hourly mean | C19: 20 mg/m3 | D19: =TOC!M19 -> 7 | E19: =TOC!L19 -> 0
A20: Hydrogen chloride | B20: Daily mean | C20: 10 mg/m3 | D20: =HCl!O19 -> 2 | E20: =HCl!N19 -> 1
B21: ½ hourly mean | C21: 60 mg/m3 | D21: =HCl!M19 -> 20 | E21: =HCl!L19 -> 1
A22: Sulphur dioxide | B22: Daily mean | C22: 50 mg/m3 | D22: ='SO2'!O19 -> 42 | E22: ='SO2'!N19 -> 16.33333333
B23: ½ hourly mean | C23: 200 mg/m3 | D23: ='SO2'!M19 -> 96 | E23: ='SO2'!L19 -> 16.33333333
A24: Carbon monoxide | B24: Daily mean | C24: 50 mg/m3 | D24: ='CO 0.5hourly'!O19 -> 4 | E24: ='CO 0.5hourly'!N19 -> 2.333333333
B25: ½ hourly mean * | C25: 100 mg/m3 * | D25: ='CO 0.5hourly'!M19 -> 171 | E25: ='CO 0.5hourly'!L19 -> 2.333333333
B26: 95%ile 10-min avg * | C26: 150 mg/m3 * | D26: ='CO 95% 10 min'!M19 -> 3.689166667 | E26: ='CO 95% 10 min'!N19 -> 0
A27: Ammonia | B27: Daily mean | C27: 10 mg/m3 | D27: ='NH3'!O19 -> 2 | E27: ='NH3'!N19 -> 0.4166666667
A28: * = delete or amend as appropriate
A29: Comments :
A30: Note that FCC Millerhill's permit allows for a half-hourly exceedance of CO as long as the 95% 10 minute limit is complied with. There are a number of CO spikes, but these do not constitute a permit breach as the plant was within the 95% 10-minute CO limit at all times. Such instances were reported to SEPA as a courtesy at the time.

Sheet HCl
A1: =+'Cover Page'!$B$29 -> Annual Performance Report 2020 | E1: =+'Cover Page'!$B$33 -> Millerhill RERC
A3: Monitoring of Hydrogen Chloride emissions | D3: Whole Installation | G3: See Notes in Cell Q3 | J3: =+A3 -> Monitoring of Hydrogen Chloride emissions | N3: Per Combustion Line | Q3: Notes:
Q4: User to add logic to complete Whole installation, Table A5:G18. From the data in Per Combustion Line, Table J6:O79, subject to No. of lines installed
A5: mg/Nm3 | B5: 1/2 Hourly Reference Periods | E5: Daily Reference Periods
A6: =+'Cover Page'!C39 -> 2020 | B6: 1/2 hourly HCl ELV | C6: Monthly 1/2 hourly mean | D6: Highest 1/2 hourly maximum | E6: Daily HCl ELV | F6: Monthly daily mean | G6: Highest daily maximum | J6: =+A6 -> 2020 | K6: mg/Nm3 | L6: Monthly 1/2 hourly mean | M6: Monthly 1/2 hourly maximum | N6: Monthly daily mean | O6: Monthly daily maximum
A7: Jan | B7: 60 | C7: 1 | D7: 2 | E7: 10 | F7: 1 | G7: 1 | J7: A1 | K7: Jan | L7: 1 | M7: 2 | N7: 1 | O7: 1
A8: Feb | B8: 60 | C8: 1 | D8: 2 | E8: 10 | F8: 1 | G8: 1 | K8: Feb | L8: 1 | M8: 2 | N8: 1 | O8: 1
A9: Mar | B9: 60 | C9: 1 | D9: 9 | E9: 10 | F9: 1 | G9: 1 | K9: Mar | L9: 1 | M9: 9 | N9: 1 | O9: 1 | Q9: Whole Installation table A5:G18:
A10: Apr | B10: 60 | C10: 1 | D10: 20 | E10: 10 | F10: 1 | G10: 1 | K10: Apr | L10: 1 | M10: 20 | N10: 1 | O10: 1 | Q10: Mean: for 1/2 hourly and daily periods calculate mean of values across all operational combustion lines for the month
A11: May | B11: 60 | C11: 1 | D11: 3 | E11: 10 | F11: 1 | G11: 1 | K11: May | L11: 1 | M11: 3 | N11: 1 | O11: 1
A12: Jun | B12: 60 | C12: 1 | D12: 4 | E12: 10 | F12: 1 | G12: 1 | K12: Jun | L12: 1 | M12: 4 | N12: 1 | O12: 1
A13: Jul | B13: 60 | C13: 1 | D13: 5 | E13: 10 | F13: 1 | G13: 2 | K13: Jul | L13: 1 | M13: 5 | N13: 1 | O13: 2 | Q13: Maximum: for 1/2 hourly and daily periods use the highest value across all operational combustion lines for the month
A14: Aug | B14: 60 | C14: 1 | D14: 11 | E14: 10 | F14: 1 | G14: 2 | K14: Aug | L14: 1 | M14: 11 | N14: 1 | O14: 2
A15: Sep | B15: 60 | C15: 1 | D15: 5 | E15: 10 | F15: 1 | G15: 2 | K15: Sep | L15: 1 | M15: 5 | N15: 1 | O15: 2
A16: Oct | B16: 60 | C16: 1 | D16: 3 | E16: 10 | F16: 1 | G16: 2 | K16: Oct | L16: 1 | M16: 3 | N16: 1 | O16: 2
A17: Nov | B17: 60 | C17: 1 | D17: 2 | E17: 10 | F17: 1 | G17: 2 | K17: Nov | L17: 1 | M17: 2 | N17: 1 | O17: 2
A18: Dec | B18: 60 | C18: 1 | D18: 3 | E18: 10 | F18: 1 | G18: 2 | K18: Dec | L18: 1 | M18: 3 | N18: 1 | O18: 2
K19: Annual | L19: =AVERAGE(L7:L18) -> 1 | M19: =MAX(M7:M18) -> 20 | N19: =AVERAGE(N7:N18) -> 1 | O19: =MAX(O7:O18) -> 2
J21: =+A6 -> 2020 | K21: mg/Nm3 | L21: Monthly 1/2 hourly mean | M21: Monthly 1/2 hourly maximum | N21: Monthly daily mean | O21: Monthly daily maximum
J22: A2 | K22: Jan
K23: Feb
K24: Mar
K25: Apr
K26: May
K27: Jun
K28: Jul
K29: Aug
K30: Sep
K31: Oct
K32: Nov
K33: Dec
K34: Annual | L34: =AVERAGE(L22:L33) ->  | M34: =MAX(M22:M33) -> 0 | N34: =AVERAGE(N22:N33) ->  | O34: =MAX(O22:O33) -> 0
J36: =+A6 -> 2020 | K36: mg/Nm3 | L36: Monthly 1/2 hourly mean | M36: Monthly 1/2 hourly maximum | N36: Monthly daily mean | O36: Monthly daily maximum
J37: A3 | K37: Jan
K38: Feb
K39: Mar
K40: Apr
K41: May
K42: Jun
K43: Jul
K44: Aug
K45: Sep
K46: Oct
K47: Nov
A48: Comments : | K48: Dec
K49: Annual | L49: =AVERAGE(L37:L48) ->  | M49: =MAX(M37:M48) -> 0 | N49: =AVERAGE(N37:N48) ->  | O49: =MAX(O37:O48) -> 0
J51: =+A6 -> 2020 | K51: mg/Nm3 | L51: Monthly 1/2 hourly mean | M51: Monthly 1/2 hourly maximum | N51: Monthly daily mean | O51: Monthly daily maximum
J52: A4 | K52: Jan
K53: Feb
K54: Mar
K55: Apr
K56: May
K57: Jun
K58: Jul
K59: Aug
K60: Sep
K61: Oct
K62: Nov
K63: Dec
K64: Annual | L64: =AVERAGE(L52:L63) ->  | M64: =MAX(M52:M63) -> 0 | N64: =AVERAGE(N52:N63) ->  | O64: =MAX(O52:O63) -> 0
J66: =+A6 -> 2020 | K66: mg/Nm3 | L66: Monthly 1/2 hourly mean | M66: Monthly 1/2 hourly maximum | N66: Monthly daily mean | O66: Monthly daily maximum
J67: A5 | K67: Jan
K68: Feb
K69: Mar
K70: Apr
K71: May
K72: Jun
K73: Jul
K74: Aug
K75: Sep
K76: Oct
K77: Nov
K78: Dec
K79: Annual | L79: =AVERAGE(L67:L78) ->  | M79: =MAX(M67:M78) -> 0 | N79: =AVERAGE(N67:N78) ->  | O79: =MAX(O67:O78) -> 0

Sheet SO2
A1: =+'Cover Page'!$B$29 -> Annual Performance Report 2020 | E1: =+'Cover Page'!$B$33 -> Millerhill RERC
A3: Monitoring of Sulphur dioxide emissions | D3: Whole Installation | G3: See Notes in Cell Q3 | J3: =+A3 -> Monitoring of Sulphur dioxide emissions | N3: Per Combustion Line | Q3: Notes:
Q4: User to add logic to complete Whole installation, Table A5:G18. From the data in Per Combustion Line, Table J6:O79, subject to No. of lines installed
A5: mg/Nm3 | B5: 1/2 Hourly Reference Periods | E5: Daily Reference Periods
A6: =+'Cover Page'!C39 -> 2020 | B6: 1/2 hourly SO2 ELV | C6: Monthly 1/2 hourly mean | D6: Highest 1/2 hourly maximum | E6: Daily SO2 ELV | F6: Monthly daily mean | G6: Highest daily maximum | J6: =+A6 -> 2020 | K6: mg/Nm3 | L6: Monthly 1/2 hourly mean | M6: Monthly 1/2 hourly maximum | N6: Monthly daily mean | O6: Monthly daily maximum
A7: Jan | B7: 200 | C7: 6 | D7: 35 | E7: 50 | F7: 6 | G7: 13 | J7: A1 | K7: Jan | L7: 6 | M7: 35 | N7: 6 | O7: 13
A8: Feb | B8: 200 | C8: 11 | D8: 61 | E8: 50 | F8: 11 | G8: 19 | K8: Feb | L8: 11 | M8: 61 | N8: 11 | O8: 19
A9: Mar | B9: 200 | C9: 13 | D9: 68 | E9: 50 | F9: 13 | G9: 27 | K9: Mar | L9: 13 | M9: 68 | N9: 13 | O9: 27 | Q9: Whole Installation table A5:G18:
A10: Apr | B10: 200 | C10: 6 | D10: 64 | E10: 50 | F10: 6 | G10: 21 | K10: Apr | L10: 6 | M10: 64 | N10: 6 | O10: 21 | Q10: Mean: for 1/2 hourly and daily periods calculate mean of values across all operational combustion lines for the month
A11: May | B11: 200 | C11: 15 | D11: 41 | E11: 50 | F11: 15 | G11: 23 | K11: May | L11: 15 | M11: 41 | N11: 15 | O11: 23
A12: Jun | B12: 200 | C12: 19 | D12: 49 | E12: 50 | F12: 19 | G12: 28 | K12: Jun | L12: 19 | M12: 49 | N12: 19 | O12: 28
A13: Jul | B13: 200 | C13: 20 | D13: 67 | E13: 50 | F13: 20 | G13: 36 | K13: Jul | L13: 20 | M13: 67 | N13: 20 | O13: 36 | Q13: Maximum: for 1/2 hourly and daily periods use the highest value across all operational combustion lines for the month
A14: Aug | B14: 200 | C14: 17 | D14: 69 | E14: 50 | F14: 17 | G14: 28 | K14: Aug | L14: 17 | M14: 69 | N14: 17 | O14: 28
A15: Sep | B15: 200 | C15: 19 | D15: 65 | E15: 50 | F15: 19 | G15: 32 | K15: Sep | L15: 19 | M15: 65 | N15: 19 | O15: 32
A16: Oct | B16: 200 | C16: 23 | D16: 62 | E16: 50 | F16: 23 | G16: 34 | K16: Oct | L16: 23 | M16: 62 | N16: 23 | O16: 34
A17: Nov | B17: 200 | C17: 28 | D17: 96 | E17: 50 | F17: 28 | G17: 42 | K17: Nov | L17: 28 | M17: 96 | N17: 28 | O17: 42
A18: Dec | B18: 200 | C18: 19 | D18: 69 | E18: 50 | F18: 19 | G18: 39 | K18: Dec | L18: 19 | M18: 69 | N18: 19 | O18: 39
K19: Annual | L19: =AVERAGE(L7:L18) -> 16.33333333 | M19: =MAX(M7:M18) -> 96 | N19: =AVERAGE(N7:N18) -> 16.33333333 | O19: =MAX(O7:O18) -> 42
J21: =+A6 -> 2020 | K21: mg/Nm3 | L21: Monthly 1/2 hourly mean | M21: Monthly 1/2 hourly maximum | N21: Monthly daily mean | O21: Monthly daily maximum
J22: A2 | K22: Jan
K23: Feb
K24: Mar
K25: Apr
K26: May
K27: Jun
K28: Jul
K29: Aug
K30: Sep
K31: Oct
K32: Nov
K33: Dec
K34: Annual | L34: =AVERAGE(L22:L33) ->  | M34: =MAX(M22:M33) -> 0 | N34: =AVERAGE(N22:N33) ->  | O34: =MAX(O22:O33) -> 0
J36: =+A6 -> 2020 | K36: mg/Nm3 | L36: Monthly 1/2 hourly mean | M36: Monthly 1/2 hourly maximum | N36: Monthly daily mean | O36: Monthly daily maximum
J37: A3 | K37: Jan
K38: Feb
K39: Mar
K40: Apr
K41: May
K42: Jun
K43: Jul
K44: Aug
K45: Sep
K46: Oct
K47: Nov
A48: Comments : | K48: Dec
K49: Annual | L49: =AVERAGE(L37:L48) ->  | M49: =MAX(M37:M48) -> 0 | N49: =AVERAGE(N37:N48) ->  | O49: =MAX(O37:O48) -> 0
J51: =+A6 -> 2020 | K51: mg/Nm3 | L51: Monthly 1/2 hourly mean | M51: Monthly 1/2 hourly maximum | N51: Monthly daily mean | O51: Monthly daily maximum
J52: A4 | K52: Jan
K53: Feb
K54: Mar
K55: Apr
K56: May
K57: Jun
K58: Jul
K59: Aug
K60: Sep
K61: Oct
K62: Nov
K63: Dec
K64: Annual | L64: =AVERAGE(L52:L63) ->  | M64: =MAX(M52:M63) -> 0 | N64: =AVERAGE(N52:N63) ->  | O64: =MAX(O52:O63) -> 0
J66: =+A6 -> 2020 | K66: mg/Nm3 | L66: Monthly 1/2 hourly mean | M66: Monthly 1/2 hourly maximum | N66: Monthly daily mean | O66: Monthly daily maximum
J67: A5 | K67: Jan
K68: Feb
K69: Mar
K70: Apr
K71: May
K72: Jun
K73: Jul
K74: Aug
K75: Sep
K76: Oct
K77: Nov
K78: Dec
K79: Annual | L79: =AVERAGE(L67:L78) ->  | M79: =MAX(M67:M78) -> 0 | N79: =AVERAGE(N67:N78) ->  | O79: =MAX(O67:O78) -> 0

Sheet NOx
A1: =+'Cover Page'!$B$29 -> Annual Performance Report 2020 | E1: =+'Cover Page'!$B$33 -> Millerhill RERC
A3: Monitoring of Oxides of Nitrogen emissions | D3: Whole Installation | G3: See Notes in Cell Q3 | J3: =+A3 -> Monitoring of Oxides of Nitrogen emissions | N3: Per Combustion Line | Q3: Notes:
Q4: User to add logic to complete Whole installation, Table A5:G18. From the data in Per Combustion Line, Table J6:O79, subject to No. of lines installed
A5: mg/Nm3 | B5: 1/2 Hourly Reference Periods | E5: Daily Reference Periods
A6: =+'Cover Page'!C39 -> 2020 | B6: 1/2 hourly NOx ELV | C6: Monthly 1/2 hourly mean | D6: Highest 1/2 hourly maximum | E6: Daily NOx ELV | F6: Monthly daily mean | G6: Highest daily maximum | J6: =+A6 -> 2020 | K6: mg/Nm3 | L6: Monthly 1/2 hourly mean | M6: Monthly 1/2 hourly maximum | N6: Monthly daily mean | O6: Monthly daily maximum
A7: Jan | B7: 400 | C7: 166 | D7: 214 | E7: 200 | F7: 166 | G7: 181 | J7: A1 | K7: Jan | L7: 166 | M7: 214 | N7: 166 | O7: 181
A8: Feb | B8: 400 | C8: 150 | D8: 197 | E8: 200 | F8: 150 | G8: 151 | K8: Feb | L8: 150 | M8: 197 | N8: 150 | O8: 151
A9: Mar | B9: 400 | C9: 177 | D9: 214 | E9: 200 | F9: 177 | G9: 181 | K9: Mar | L9: 177 | M9: 214 | N9: 177 | O9: 181 | Q9: Whole Installation table A5:G18:
A10: Apr | B10: 400 | C10: 179 | D10: 203 | E10: 200 | F10: 179 | G10: 181 | K10: Apr | L10: 179 | M10: 203 | N10: 179 | O10: 181 | Q10: Mean: for 1/2 hourly and daily periods calculate mean of values across all operational combustion lines for the month
A11: May | B11: 400 | C11: 173 | D11: 257 | E11: 200 | F11: 173 | G11: 190 | K11: May | L11: 173 | M11: 257 | N11: 173 | O11: 190
A12: Jun | B12: 400 | C12: 170 | D12: 197 | E12: 200 | F12: 170 | G12: 171 | K12: Jun | L12: 170 | M12: 197 | N12: 170 | O12: 171
A13: Jul | B13: 400 | C13: 170 | D13: 192 | E13: 200 | F13: 170 | G13: 170 | K13: Jul | L13: 170 | M13: 192 | N13: 170 | O13: 170 | Q13: Maximum: for 1/2 hourly and daily periods use the highest value across all operational combustion lines for the month
A14: Aug | B14: 400 | C14: 170 | D14: 193 | E14: 200 | F14: 170 | G14: 171 | K14: Aug | L14: 170 | M14: 193 | N14: 170 | O14: 171
A15: Sep | B15: 400 | C15: 170 | D15: 191 | E15: 200 | F15: 170 | G15: 171 | K15: Sep | L15: 170 | M15: 191 | N15: 170 | O15: 171
A16: Oct | B16: 400 | C16: 170 | D16: 206 | E16: 200 | F16: 170 | G16: 172 | K16: Oct | L16: 170 | M16: 206 | N16: 170 | O16: 172
A17: Nov | B17: 400 | C17: 168 | D17: 188 | E17: 200 | F17: 168 | G17: 170 | K17: Nov | L17: 168 | M17: 188 | N17: 168 | O17: 170
A18: Dec | B18: 400 | C18: 170 | D18: 193 | E18: 200 | F18: 170 | G18: 171 | K18: Dec | L18: 170 | M18: 193 | N18: 170 | O18: 171
K19: Annual | L19: =AVERAGE(L7:L18) -> 169.4166667 | M19: =MAX(M7:M18) -> 257 | N19: =AVERAGE(N7:N18) -> 169.4166667 | O19: =MAX(O7:O18) -> 190
J21: =+A6 -> 2020 | K21: mg/Nm3 | L21: Monthly 1/2 hourly mean | M21: Monthly 1/2 hourly maximum | N21: Monthly daily mean | O21: Monthly daily maximum
J22: A2 | K22: Jan
K23: Feb
K24: Mar
K25: Apr
K26: May
K27: Jun
K28: Jul
K29: Aug
K30: Sep
K31: Oct
K32: Nov
K33: Dec
K34: Annual | L34: =AVERAGE(L22:L33) ->  | M34: =MAX(M22:M33) -> 0 | N34: =AVERAGE(N22:N33) ->  | O34: =MAX(O22:O33) -> 0
J36: =+A6 -> 2020 | K36: mg/Nm3 | L36: Monthly 1/2 hourly mean | M36: Monthly 1/2 hourly maximum | N36: Monthly daily mean | O36: Monthly daily maximum
J37: A3 | K37: Jan
K38: Feb
K39: Mar
K40: Apr
K41: May
K42: Jun
K43: Jul
K44: Aug
K45: Sep
K46: Oct
K47: Nov
A48: Comments : | K48: Dec
K49: Annual | L49: =AVERAGE(L37:L48) ->  | M49: =MAX(M37:M48) -> 0 | N49: =AVERAGE(N37:N48) ->  | O49: =MAX(O37:O48) -> 0
J51: =+A6 -> 2020 | K51: mg/Nm3 | L51: Monthly 1/2 hourly mean | M51: Monthly 1/2 hourly maximum | N51: Monthly daily mean | O51: Monthly daily maximum
J52: A4 | K52: Jan
K53: Feb
K54: Mar
K55: Apr
K56: May
K57: Jun
K58: Jul
K59: Aug
K60: Sep
K61: Oct
K62: Nov
K63: Dec
K64: Annual | L64: =AVERAGE(L52:L63) ->  | M64: =MAX(M52:M63) -> 0 | N64: =AVERAGE(N52:N63) ->  | O64: =MAX(O52:O63) -> 0
J66: =+A6 -> 2020 | K66: mg/Nm3 | L66: Monthly 1/2 hourly mean | M66: Monthly 1/2 hourly maximum | N66: Monthly daily mean | O66: Monthly daily maximum
J67: A5 | K67: Jan
K68: Feb
K69: Mar
K70: Apr
K71: May
K72: Jun
K73: Jul
K74: Aug
K75: Sep
K76: Oct
K77: Nov
K78: Dec
K79: Annual | L79: =AVERAGE(L67:L78) ->  | M79: =MAX(M67:M78) -> 0 | N79: =AVERAGE(N67:N78) ->  | O79: =MAX(O67:O78) -> 0

Sheet TOC
A1: =+'Cover Page'!$B$29 -> Annual Performance Report 2020 | E1: =+'Cover Page'!$B$33 -> Millerhill RERC
A3: Monitoring of Total organic carbon emissions | D3: Whole Installation | G3: See Notes in Cell Q3 | J3: =+A3 -> Monitoring of Total organic carbon emissions | N3: Per Combustion Line | Q3: Notes:
Q4: User to add logic to complete Whole installation, Table A5:G18. From the data in Per Combustion Line, Table J6:O79, subject to No. of lines installed
A5: mg/Nm3 | B5: 1/2 Hourly Reference Periods | E5: Daily Reference Periods
A6: =+'Cover Page'!C39 -> 2020 | B6: 1/2 hourly TOC ELV | C6: Monthly 1/2 hourly mean | D6: Highest 1/2 hourly maximum | E6: Daily TOC ELV | F6: Monthly daily mean | G6: Highest daily maximum | J6: =+A6 -> 2020 | K6: mg/Nm3 | L6: Monthly 1/2 hourly mean | M6: Monthly 1/2 hourly maximum | N6: Monthly daily mean | O6: Monthly daily maximum
A7: Jan | B7: 20 | C7: 0 | D7: 0 | E7: 10 | F7: 0 | G7: 0 | J7: A1 | K7: Jan | L7: 0 | M7: 0 | N7: 0 | O7: 0
A8: Feb | B8: 20 | C8: 0 | D8: 0 | E8: 10 | F8: 0 | G8: 0 | K8: Feb | L8: 0 | M8: 0 | N8: 0 | O8: 0
A9: Mar | B9: 20 | C9: 0 | D9: 1 | E9: 10 | F9: 0 | G9: 0 | K9: Mar | L9: 0 | M9: 1 | N9: 0 | O9: 0 | Q9: Whole Installation table A5:G18:
A10: Apr | B10: 20 | C10: 0 | D10: 2 | E10: 10 | F10: 0 | G10: 0 | K10: Apr | L10: 0 | M10: 2 | N10: 0 | O10: 0 | Q10: Mean: for 1/2 hourly and daily periods calculate mean of values across all operational combustion lines for the month
A11: May | B11: 20 | C11: 0 | D11: 0 | E11: 10 | F11: 0 | G11: 0 | K11: May | L11: 0 | M11: 0 | N11: 0 | O11: 0
A12: Jun | B12: 20 | C12: 0 | D12: 4 | E12: 10 | F12: 0 | G12: 0 | K12: Jun | L12: 0 | M12: 4 | N12: 0 | O12: 0
A13: Jul | B13: 20 | C13: 0 | D13: 5 | E13: 10 | F13: 0 | G13: 0 | K13: Jul | L13: 0 | M13: 5 | N13: 0 | O13: 0 | Q13: Maximum: for 1/2 hourly and daily periods use the highest value across all operational combustion lines for the month
A14: Aug | B14: 20 | C14: 0 | D14: 2 | E14: 10 | F14: 0 | G14: 0 | K14: Aug | L14: 0 | M14: 2 | N14: 0 | O14: 0
A15: Sep | B15: 20 | C15: 0 | D15: 0 | E15: 10 | F15: 0 | G15: 0 | K15: Sep | L15: 0 | M15: 0 | N15: 0 | O15: 0
A16: Oct | B16: 20 | C16: 0 | D16: 0 | E16: 10 | F16: 0 | G16: 0 | K16: Oct | L16: 0 | M16: 0 | N16: 0 | O16: 0
A17: Nov | B17: 20 | C17: 0 | D17: 0 | E17: 10 | F17: 0 | G17: 0 | K17: Nov | L17: 0 | M17: 0 | N17: 0 | O17: 0
A18: Dec | B18: 20 | C18: 0 | D18: 7 | E18: 10 | F18: 0 | G18: 0 | K18: Dec | L18: 0 | M18: 7 | N18: 0 | O18: 0
K19: Annual | L19: =AVERAGE(L7:L18) -> 0 | M19: =MAX(M7:M18) -> 7 | N19: =AVERAGE(N7:N18) -> 0 | O19: =MAX(O7:O18) -> 0
J21: =+A6 -> 2020 | K21: mg/Nm3 | L21: Monthly 1/2 hourly mean | M21: Monthly 1/2 hourly maximum | N21: Monthly daily mean | O21: Monthly daily maximum
J22: A2 | K22: Jan
K23: Feb
K24: Mar
K25: Apr
K26: May
K27: Jun
K28: Jul
K29: Aug
K30: Sep
K31: Oct
K32: Nov
K33: Dec
K34: Annual | L34: =AVERAGE(L22:L33) ->  | M34: =MAX(M22:M33) -> 0 | N34: =AVERAGE(N22:N33) ->  | O34: =MAX(O22:O33) -> 0
J36: =+A6 -> 2020 | K36: mg/Nm3 | L36: Monthly 1/2 hourly mean | M36: Monthly 1/2 hourly maximum | N36: Monthly daily mean | O36: Monthly daily maximum
J37: A3 | K37: Jan
K38: Feb
K39: Mar
K40: Apr
K41: May
K42: Jun
K43: Jul
K44: Aug
K45: Sep
K46: Oct
K47: Nov
A48: Comments : | K48: Dec
K49: Annual | L49: =AVERAGE(L37:L48) ->  | M49: =MAX(M37:M48) -> 0 | N49: =AVERAGE(N37:N48) ->  | O49: =MAX(O37:O48) -> 0
J51: =+A6 -> 2020 | K51: mg/Nm3 | L51: Monthly 1/2 hourly mean | M51: Monthly 1/2 hourly maximum | N51: Monthly daily mean | O51: Monthly daily maximum
J52: A4 | K52: Jan
K53: Feb
K54: Mar
K55: Apr
K56: May
K57: Jun
K58: Jul
K59: Aug
K60: Sep
K61: Oct
K62: Nov
K63: Dec
K64: Annual | L64: =AVERAGE(L52:L63) ->  | M64: =MAX(M52:M63) -> 0 | N64: =AVERAGE(N52:N63) ->  | O64: =MAX(O52:O63) -> 0
J66: =+A6 -> 2020 | K66: mg/Nm3 | L66: Monthly 1/2 hourly mean | M66: Monthly 1/2 hourly maximum | N66: Monthly daily mean | O66: Monthly daily maximum
J67: A5 | K67: Jan
K68: Feb
K69: Mar
K70: Apr
K71: May
K72: Jun
K73: Jul
K74: Aug
K75: Sep
K76: Oct
K77: Nov
K78: Dec
K79: Annual | L79: =AVERAGE(L67:L78) ->  | M79: =MAX(M67:M78) -> 0 | N79: =AVERAGE(N67:N78) ->  | O79: =MAX(O67:O78) -> 0

Sheet Particulates
A1: =+'Cover Page'!$B$29 -> Annual Performance Report 2020 | E1: =+'Cover Page'!$B$33 -> Millerhill RERC
A3: Monitoring of Particulate matter emissions | D3: Whole Installation | G3: See Notes in Cell Q3 | J3: =+A3 -> Monitoring of Particulate matter emissions | N3: Per Combustion Line | Q3: Notes:
Q4: User to add logic to complete Whole installation, Table A5:G18. From the data in Per Combustion Line, Table J6:O79, subject to No. of lines installed
A5: mg/Nm3 | B5: 1/2 Hourly Reference Periods | E5: Daily Reference Periods
A6: =+'Cover Page'!C39 -> 2020 | B6: 1/2 hourly PM ELV | C6: Monthly 1/2 hourly mean | D6: Highest 1/2 hourly maximum | E6: Daily PM ELV | F6: Monthly daily mean | G6: Highest daily maximum | J6: =+A6 -> 2020 | K6: mg/Nm3 | L6: Monthly 1/2 hourly mean | M6: Monthly 1/2 hourly maximum | N6: Monthly daily mean | O6: Monthly daily maximum
A7: Jan | B7: 30 | C7: 1 | D7: 1 | E7: 10 | F7: 1 | G7: 1 | J7: A1 | K7: Jan | L7: 1 | M7: 1 | N7: 1 | O7: 1
A8: Feb | B8: 30 | C8: 1 | D8: 1 | E8: 10 | F8: 1 | G8: 1 | K8: Feb | L8: 1 | M8: 1 | N8: 1 | O8: 1
A9: Mar | B9: 30 | C9: 1 | D9: 1 | E9: 10 | F9: 1 | G9: 1 | K9: Mar | L9: 1 | M9: 1 | N9: 1 | O9: 1 | Q9: Whole Installation table A5:G18:
A10: Apr | B10: 30 | C10: 1 | D10: 1 | E10: 10 | F10: 1 | G10: 1 | K10: Apr | L10: 1 | M10: 1 | N10: 1 | O10: 1 | Q10: Mean: for 1/2 hourly and daily periods calculate mean of values across all operational combustion lines for the month
A11: May | B11: 30 | C11: 1 | D11: 1 | E11: 10 | F11: 1 | G11: 1 | K11: May | L11: 1 | M11: 1 | N11: 1 | O11: 1
A12: Jun | B12: 30 | C12: 1 | D12: 1 | E12: 10 | F12: 1 | G12: 1 | K12: Jun | L12: 1 | M12: 1 | N12: 1 | O12: 1
A13: Jul | B13: 30 | C13: 1 | D13: 1 | E13: 10 | F13: 1 | G13: 1 | K13: Jul | L13: 1 | M13: 1 | N13: 1 | O13: 1 | Q13: Maximum: for 1/2 hourly and daily periods use the highest value across all operational combustion lines for the month
A14: Aug | B14: 30 | C14: 1 | D14: 1 | E14: 10 | F14: 1 | G14: 1 | K14: Aug | L14: 1 | M14: 1 | N14: 1 | O14: 1
A15: Sep | B15: 30 | C15: 1 | D15: 1 | E15: 10 | F15: 1 | G15: 1 | K15: Sep | L15: 1 | M15: 1 | N15: 1 | O15: 1
A16: Oct | B16: 30 | C16: 1 | D16: 1 | E16: 10 | F16: 1 | G16: 1 | K16: Oct | L16: 1 | M16: 1 | N16: 1 | O16: 1
A17: Nov | B17: 30 | C17: 1 | D17: 1 | E17: 10 | F17: 1 | G17: 1 | K17: Nov | L17: 1 | M17: 1 | N17: 1 | O17: 1
A18: Dec | B18: 30 | C18: 1 | D18: 2 | E18: 10 | F18: 1 | G18: 1 | K18: Dec | L18: 1 | M18: 2 | N18: 1 | O18: 1
K19: Annual | L19: =AVERAGE(L7:L18) -> 1 | M19: =MAX(M7:M18) -> 2 | N19: =AVERAGE(N7:N18) -> 1 | O19: =MAX(O7:O18) -> 1
J21: =+A6 -> 2020 | K21: mg/Nm3 | L21: Monthly 1/2 hourly mean | M21: Monthly 1/2 hourly maximum | N21: Monthly daily mean | O21: Monthly daily maximum
J22: A2 | K22: Jan
K23: Feb
K24: Mar
K25: Apr
K26: May
K27: Jun
K28: Jul
K29: Aug
K30: Sep
K31: Oct
K32: Nov
K33: Dec
K34: Annual | L34: =AVERAGE(L22:L33) ->  | M34: =MAX(M22:M33) -> 0 | N34: =AVERAGE(N22:N33) ->  | O34: =MAX(O22:O33) -> 0
J36: =+A6 -> 2020 | K36: mg/Nm3 | L36: Monthly 1/2 hourly mean | M36: Monthly 1/2 hourly maximum | N36: Monthly daily mean | O36: Monthly daily maximum
J37: A3 | K37: Jan
K38: Feb
K39: Mar
K40: Apr
K41: May
K42: Jun
K43: Jul
K44: Aug
K45: Sep
K46: Oct
K47: Nov
A48: Comments : | K48: Dec
K49: Annual | L49: =AVERAGE(L37:L48) ->  | M49: =MAX(M37:M48) -> 0 | N49: =AVERAGE(N37:N48) ->  | O49: =MAX(O37:O48) -> 0
J51: =+A6 -> 2020 | K51: mg/Nm3 | L51: Monthly 1/2 hourly mean | M51: Monthly 1/2 hourly maximum | N51: Monthly daily mean | O51: Monthly daily maximum
J52: A4 | K52: Jan
K53: Feb
K54: Mar
K55: Apr
K56: May
K57: Jun
K58: Jul
K59: Aug
K60: Sep
K61: Oct
K62: Nov
K63: Dec
K64: Annual | L64: =AVERAGE(L52:L63) ->  | M64: =MAX(M52:M63) -> 0 | N64: =AVERAGE(N52:N63) ->  | O64: =MAX(O52:O63) -> 0
J66: =+A6 -> 2020 | K66: mg/Nm3 | L66: Monthly 1/2 hourly mean | M66: Monthly 1/2 hourly maximum | N66: Monthly daily mean | O66: Monthly daily maximum
J67: A5 | K67: Jan
K68: Feb
K69: Mar
K70: Apr
K71: May
K72: Jun
K73: Jul
K74: Aug
K75: Sep
K76: Oct
K77: Nov
K78: Dec
K79: Annual | L79: =AVERAGE(L67:L78) ->  | M79: =MAX(M67:M78) -> 0 | N79: =AVERAGE(N67:N78) ->  | O79: =MAX(O67:O78) -> 0

Sheet CO 0.5hourly
A1: =+'Cover Page'!$B$29 -> Annual Performance Report 2020 | E1: =+'Cover Page'!$B$33 -> Millerhill RERC
A3: Monitoring of Carbon Monoxide (half hourly) | D3: Whole Installation | G3: See Notes in Cell Q3 | J3: =+A3 -> Monitoring of Carbon Monoxide (half hourly) | N3: Per Combustion Line | Q3: Notes:
Q4: User to add logic to complete Whole installation, Table A5:G18. From the data in Per Combustion Line, Table J6:O79, subject to No. of lines installed
A5: mg/Nm3 | B5: 1/2 Hourly Reference Periods | E5: Daily Reference Periods
A6: =+'Cover Page'!C39 -> 2020 | B6: 1/2 hourly CO ELV | C6: Monthly 1/2 hourly mean | D6: Highest 1/2 hourly maximum | E6: Daily CO ELV | F6: Monthly daily mean | G6: Highest daily maximum | J6: =+A6 -> 2020 | K6: mg/Nm3 | L6: Monthly 1/2 hourly mean | M6: Monthly 1/2 hourly maximum | N6: Monthly daily mean | O6: Monthly daily maximum
A7: Jan | B7: 100 | C7: 3 | D7: 21 | E7: 50 | F7: 3 | G7: 4 | J7: A1 | K7: Jan | L7: 3 | M7: 21 | N7: 3 | O7: 4
A8: Feb | B8: =+B7 -> 100 | C8: 3 | D8: 21 | E8: =+E7 -> 50 | F8: 3 | G8: 4 | K8: Feb | L8: 3 | M8: 21 | N8: 3 | O8: 4
A9: Mar | B9: =+B8 -> 100 | C9: 3 | D9: 58 | E9: =+E8 -> 50 | F9: 3 | G9: 4 | K9: Mar | L9: 3 | M9: 58 | N9: 3 | O9: 4 | Q9: Whole Installation table A5:G18:
A10: Apr | B10: 100 | C10: 3 | D10: 71 | E10: 50 | F10: 3 | G10: 4 | K10: Apr | L10: 3 | M10: 71 | N10: 3 | O10: 4 | Q10: Mean: for 1/2 hourly and daily periods calculate mean of values across all operational combustion lines for the month
A11: May | B11: 100 | C11: 2 | D11: 52 | E11: 50 | F11: 2 | G11: 3 | K11: May | L11: 2 | M11: 52 | N11: 2 | O11: 3
A12: Jun | B12: 100 | C12: 2 | D12: 89 | E12: 50 | F12: 2 | G12: 2 | K12: Jun | L12: 2 | M12: 89 | N12: 2 | O12: 2
A13: Jul | B13: 100 | C13: 2 | D13: 68 | E13: 50 | F13: 2 | G13: 3 | K13: Jul | L13: 2 | M13: 68 | N13: 2 | O13: 3 | Q13: Maximum: for 1/2 hourly and daily periods use the highest value across all operational combustion lines for the month
A14: Aug | B14: 100 | C14: 2 | D14: 171 | E14: 50 | F14: 2 | G14: 2 | K14: Aug | L14: 2 | M14: 171 | N14: 2 | O14: 2
A15: Sep | B15: 100 | C15: 2 | D15: 14 | E15: 50 | F15: 2 | G15: 2 | K15: Sep | L15: 2 | M15: 14 | N15: 2 | O15: 2
A16: Oct | B16: 100 | C16: 2 | D16: 20 | E16: 50 | F16: 2 | G16: 2 | K16: Oct | L16: 2 | M16: 20 | N16: 2 | O16: 2
A17: Nov | B17: 100 | C17: 2 | D17: 16 | E17: 50 | F17: 2 | G17: 2 | K17: Nov | L17: 2 | M17: 16 | N17: 2 | O17: 2
A18: Dec | B18: 100 | C18: 2 | D18: 47 | E18: 50 | F18: 2 | G18: 3 | K18: Dec | L18: 2 | M18: 47 | N18: 2 | O18: 3
K19: Annual | L19: =AVERAGE(L7:L18) -> 2.333333333 | M19: =MAX(M7:M18) -> 171 | N19: =AVERAGE(N7:N18) -> 2.333333333 | O19: =MAX(O7:O18) -> 4
J21: =+A6 -> 2020 | K21: mg/Nm3 | L21: Monthly 1/2 hourly mean | M21: Monthly 1/2 hourly maximum | N21: Monthly daily mean | O21: Monthly daily maximum
J22: A2 | K22: Jan
K23: Feb
K24: Mar
K25: Apr
K26: May
K27: Jun
K28: Jul
K29: Aug
K30: Sep
K31: Oct
K32: Nov
K33: Dec
K34: Annual | L34: =AVERAGE(L22:L33) ->  | M34: =MAX(M22:M33) -> 0 | N34: =AVERAGE(N22:N33) ->  | O34: =MAX(O22:O33) -> 0
J36: =+A6 -> 2020 | K36: mg/Nm3 | L36: Monthly 1/2 hourly mean | M36: Monthly 1/2 hourly maximum | N36: Monthly daily mean | O36: Monthly daily maximum
J37: A3 | K37: Jan
K38: Feb
K39: Mar
K40: Apr
K41: May
K42: Jun
K43: Jul
K44: Aug
K45: Sep
K46: Oct
K47: Nov
A48: Comments : | K48: Dec
K49: Annual | L49: =AVERAGE(L37:L48) ->  | M49: =MAX(M37:M48) -> 0 | N49: =AVERAGE(N37:N48) ->  | O49: =MAX(O37:O48) -> 0
J51: =+A6 -> 2020 | K51: mg/Nm3 | L51: Monthly 1/2 hourly mean | M51: Monthly 1/2 hourly maximum | N51: Monthly daily mean | O51: Monthly daily maximum
J52: A4 | K52: Jan
K53: Feb
K54: Mar
K55: Apr
K56: May
K57: Jun
K58: Jul
K59: Aug
K60: Sep
K61: Oct
K62: Nov
K63: Dec
K64: Annual | L64: =AVERAGE(L52:L63) ->  | M64: =MAX(M52:M63) -> 0 | N64: =AVERAGE(N52:N63) ->  | O64: =MAX(O52:O63) -> 0
J66: =+A6 -> 2020 | K66: mg/Nm3 | L66: Monthly 1/2 hourly mean | M66: Monthly 1/2 hourly maximum | N66: Monthly daily mean | O66: Monthly daily maximum
J67: A5 | K67: Jan
K68: Feb
K69: Mar
K70: Apr
K71: May
K72: Jun
K73: Jul
K74: Aug
K75: Sep
K76: Oct
K77: Nov
K78: Dec
K79: Annual | L79: =AVERAGE(L67:L78) ->  | M79: =MAX(M67:M78) -> 0 | N79: =AVERAGE(N67:N78) ->  | O79: =MAX(O67:O78) -> 0

Sheet CO 95% 10 min
A1: =+'Cover Page'!$B$29 -> Annual Performance Report 2020 | E1: =+'Cover Page'!$B$33 -> Millerhill RERC
A3: Monitoring of Carbon Monoxide (10-minute avg) | E3: Whole Installation | H3: See Notes in Cell S3 | J3: =+A3 -> Monitoring of Carbon Monoxide (10-minute avg) | O3: Per Combustion Line | Q3: Notes: | S3: Notes:
S4: User to add logic to complete Whole installation, Table A5:H18. From the data in Per Combustion Line, Table K6:Q79, subject to No. of lines installed
A5: mg/Nm3 | B5: 10-minute Reference Periods | F5: Daily Reference Periods
A6: =+'Cover Page'!C39 -> 2020 | B6: 95%ile 10-min avg CO ELV | C6: 95%ile 10-min avg maximum | D6: Monthly CO 10-min avg mean | E6: 10-min avg maximum | F6: Daily CO ELV | G6: Monthly daily mean | H6: Highest daily maximum | K6: =+A6 -> 2020 | L6: mg/Nm3 | M6: 95%ile 10-min avg maximum | N6: Monthly CO 10-min avg mean | O6: 10-min avg maximum | P6: Monthly daily mean | Q6: Monthly daily maximum
A7: Jan | B7: 150 | C7: 4.21 | E7: 56.38 | F7: 50 | G7: 3 | H7: 4 | K7: A1 | L7: Jan | M7: 4.21 | O7: 56.38 | P7: 3 | Q7: 4
A8: Feb | B8: =+B7 -> 150 | C8: 5.18 | E8: 57.76 | F8: =+F7 -> 50 | G8: 3 | H8: 4 | L8: Feb | M8: 5.18 | O8: 57.76 | P8: 3 | Q8: 4
A9: Mar | B9: =+B8 -> 150 | C9: 4.57 | E9: 169.5 | F9: =+F8 -> 50 | G9: 3 | H9: 4 | L9: Mar | M9: 4.57 | O9: 169.5 | P9: 3 | Q9: 4 | S9: Whole Installation table A5:H18:
A10: Apr | B10: 150 | C10: 5.67 | E10: 208.86 | F10: 50 | G10: 3 | H10: 4 | L10: Apr | M10: 5.67 | O10: 208.86 | P10: 3 | Q10: 4 | S10: Mean: for 10-min and daily periods use average of all operational combustion lines.
A11: May | B11: 150 | C11: 3.35 | E11: 122.29 | F11: 50 | G11: 2 | H11: 3 | L11: May | M11: 3.35 | O11: 122.29 | P11: 2 | Q11: 3
A12: Jun | B12: 150 | C12: 3.06 | E12: 262.98 | F12: 50 | G12: 2 | H12: 2 | L12: Jun | M12: 3.06 | O12: 262.98 | P12: 2 | Q12: 2
A13: Jul | B13: 150 | C13: 2.95 | E13: 18.94 | F13: 50 | G13: 2 | H13: 3 | L13: Jul | M13: 2.95 | O13: 18.94 | P13: 2 | Q13: 3 | S13: Maximum: for 10-min and daily periods use the highest of all operational combustion lines in any month.
A14: Aug | B14: 150 | C14: 3.02 | E14: 14.84 | F14: 50 | G14: 2 | H14: 2 | L14: Aug | M14: 3.02 | O14: 14.84 | P14: 2 | Q14: 2
A15: Sep | B15: 150 | C15: 2.95 | E15: 37.85 | F15: 50 | G15: 2 | H15: 2 | L15: Sep | M15: 2.95 | O15: 37.85 | P15: 2 | Q15: 2
A16: Oct | B16: 150 | C16: 2.95 | E16: 55.84 | F16: 50 | G16: 2 | H16: 2 | L16: Oct | M16: 2.95 | O16: 55.84 | P16: 2 | Q16: 2
A17: Nov | B17: 150 | C17: 3.03 | E17: 35.73 | F17: 50 | G17: 2 | H17: 2 | L17: Nov | M17: 3.03 | O17: 35.73 | P17: 2 | Q17: 2
A18: Dec | B18: 150 | C18: 3.33 | E18: 117.67 | F18: 50 | G18: 2 | H18: 3 | L18: Dec | M18: 3.33 | O18: 117.67 | P18: 2 | Q18: 3
L19: Annual | M19: =AVERAGE(M7:M18) -> 3.689166667 | O19: =MAX(O7:O18) -> 262.98 | P19: =AVERAGE(P7:P18) -> 2.333333333 | Q19: =MAX(Q7:Q18) -> 4
K21: =+A6 -> 2020 | L21: mg/Nm3 | M21: 95%ile 10-min avg maximum | N21: Monthly CO 10-min avg mean | O21: 10-min avg maximum | P21: Monthly daily mean | Q21: Monthly daily maximum
K22: A2 | L22: Jan
L23: Feb
L24: Mar
L25: Apr
L26: May
L27: Jun
L28: Jul
L29: Aug
L30: Sep
L31: Oct
L32: Nov
L33: Dec
L34: Annual | M34: =AVERAGE(M22:M33) ->  | O34: =MAX(O22:O33) -> 0 | P34: =AVERAGE(P22:P33) ->  | Q34: =MAX(Q22:Q33) -> 0
K36: =+A6 -> 2020 | L36: mg/Nm3 | M36: 95%ile 10-min avg maximum | N36: Monthly CO 10-min avg mean | O36: 10-min avg maximum | P36: Monthly daily mean | Q36: Monthly daily maximum
K37: A3 | L37: Jan
L38: Feb
L39: Mar
L40: Apr
L41: May
L42: Jun
L43: Jul
L44: Aug
L45: Sep
L46: Oct
L47: Nov
A48: Comments : | L48: Dec
A49: Environment Agency explanatory note: The 10-minute average ELV is based on the “95th percentile”. In this case this means that 95% of the 10 minute averages in the relevant 24-hour period (i.e. 137) must be below 150 mg/Nm3, and 5% (i.e. 7) are allowed to be any value above 150 mg/Nm3. Whilst we expect operators to minimise CO emissions at all times, it is perfectly acceptable for the value of the maximum 10-minute average to be above 150 mg/Nm3, provided the 95th percentile ELV has been met for that period. | L49: Annual | M49: =AVERAGE(M37:M48) ->  | O49: =MAX(O37:O48) -> 0 | P49: =AVERAGE(P37:P48) ->  | Q49: =MAX(Q37:Q48) -> 0
K51: =+A6 -> 2020 | L51: mg/Nm3 | M51: 95%ile 10-min avg maximum | N51: Monthly CO 10-min avg mean | O51: 10-min avg maximum | P51: Monthly daily mean | Q51: Monthly daily maximum
K52: A4 | L52: Jan
L53: Feb
L54: Mar
L55: Apr
L56: May
L57: Jun
L58: Jul
L59: Aug
L60: Sep
L61: Oct
L62: Nov
L63: Dec
L64: Annual | M64: =AVERAGE(M52:M63) ->  | O64: =MAX(O52:O63) -> 0 | P64: =AVERAGE(P52:P63) ->  | Q64: =MAX(Q52:Q63) -> 0
K66: =+A6 -> 2020 | L66: mg/Nm3 | M66: 95%ile 10-min avg maximum | N66: Monthly CO 10-min avg mean | O66: 10-min avg maximum | P66: Monthly daily mean | Q66: Monthly daily maximum
K67: A5 | L67: Jan
L68: Feb
L69: Mar
L70: Apr
L71: May
L72: Jun
L73: Jul
L74: Aug
L75: Sep
L76: Oct
L77: Nov
L78: Dec
L79: Annual | M79: =AVERAGE(M67:M78) ->  | O79: =MAX(O67:O78) -> 0 | P79: =AVERAGE(P67:P78) ->  | Q79: =MAX(Q67:Q78) -> 0

Sheet NH3
A1: =+'Cover Page'!$B$29 -> Annual Performance Report 2020 | E1: =+'Cover Page'!$B$33 -> Millerhill RERC
A3: Monitoring of Ammnonia emissions | D3: Whole Installation | G3: See Notes in Cell Q3 | J3: =+A3 -> Monitoring of Ammnonia emissions | N3: Per Combustion Line | Q3: Notes:
Q4: User to add logic to complete Whole installation, Table A5:G18. From the data in Per Combustion Line, Table J6:O79, subject to No. of lines installed
A5: mg/Nm3 | B5: 1/2 Hourly Reference Periods | E5: Daily Reference Periods
A6: =+'Cover Page'!C39 -> 2020 | B6: 1/2 hourly NH3 ELV | C6: Monthly 1/2 hourly mean | D6: Highest 1/2 hourly maximum | E6: Daily NH3 ELV | F6: Monthly daily mean | G6: Highest daily maximum | J6: =+A6 -> 2020 | K6: mg/Nm3 | L6: Monthly 1/2 hourly mean | M6: Monthly 1/2 hourly maximum | N6: Monthly daily mean | O6: Monthly daily maximum
A7: Jan | B7: 0 | C7: 0 | D7: 4 | E7: 10 | F7: 0 | G7: 1 | J7: A1 | K7: Jan | L7: 0 | M7: 4 | N7: 0 | O7: 1
A8: Feb | B8: =+B7 -> 0 | C8: 1 | D8: 6 | E8: =+E7 -> 10 | F8: 1 | G8: 2 | K8: Feb | L8: 1 | M8: 6 | N8: 1 | O8: 2
A9: Mar | B9: =+B8 -> 0 | C9: 1 | D9: 6 | E9: =+E8 -> 10 | F9: 1 | G9: 1 | K9: Mar | L9: 1 | M9: 6 | N9: 1 | O9: 1 | Q9: Whole Installation table A5:G18:
A10: Apr | B10: 0 | C10: 0 | D10: 1 | E10: 10 | F10: 0 | G10: 0 | K10: Apr | L10: 0 | M10: 1 | N10: 0 | O10: 0 | Q10: Mean: for 1/2 hourly and daily periods calculate mean of values across all operational combustion lines for the month
A11: May | B11: 0 | C11: 0 | D11: 1 | E11: 10 | F11: 0 | G11: 1 | K11: May | L11: 0 | M11: 1 | N11: 0 | O11: 1
A12: Jun | B12: 0 | C12: 0 | D12: 1 | E12: 10 | F12: 0 | G12: 1 | K12: Jun | L12: 0 | M12: 1 | N12: 0 | O12: 1
A13: Jul | B13: 0 | C13: 0 | D13: 1 | E13: 10 | F13: 0 | G13: 1 | K13: Jul | L13: 0 | M13: 1 | N13: 0 | O13: 1 | Q13: Maximum: for 1/2 hourly and daily periods use the highest value across all operational combustion lines for the month
A14: Aug | B14: 0 | C14: 0 | D14: 1 | E14: 10 | F14: 0 | G14: 1 | K14: Aug | L14: 0 | M14: 1 | N14: 0 | O14: 1
A15: Sep | B15: 0 | C15: 0 | D15: 1 | E15: 10 | F15: 0 | G15: 1 | K15: Sep | L15: 0 | M15: 1 | N15: 0 | O15: 1
A16: Oct | B16: 0 | C16: 1 | D16: 2 | E16: 10 | F16: 1 | G16: 1 | K16: Oct | L16: 1 | M16: 2 | N16: 1 | O16: 1
A17: Nov | B17: 0 | C17: 1 | D17: 3 | E17: 10 | F17: 1 | G17: 1 | K17: Nov | L17: 1 | M17: 3 | N17: 1 | O17: 1
A18: Dec | B18: 0 | C18: 1 | D18: 2 | E18: 10 | F18: 1 | G18: 1 | K18: Dec | L18: 1 | M18: 2 | N18: 1 | O18: 1
K19: Annual | L19: =AVERAGE(L7:L18) -> 0.4166666667 | M19: =MAX(M7:M18) -> 6 | N19: =AVERAGE(N7:N18) -> 0.4166666667 | O19: =MAX(O7:O18) -> 2
J21: =+A6 -> 2020 | K21: mg/Nm3 | L21: Monthly 1/2 hourly mean | M21: Monthly 1/2 hourly maximum | N21: Monthly daily mean | O21: Monthly daily maximum
J22: A2 | K22: Jan
K23: Feb
K24: Mar
K25: Apr
K26: May
K27: Jun
K28: Jul
K29: Aug
K30: Sep
K31: Oct
K32: Nov
K33: Dec
K34: Annual | L34: =AVERAGE(L22:L33) ->  | M34: =MAX(M22:M33) -> 0 | N34: =AVERAGE(N22:N33) ->  | O34: =MAX(O22:O33) -> 0
J36: =+A6 -> 2020 | K36: mg/Nm3 | L36: Monthly 1/2 hourly mean | M36: Monthly 1/2 hourly maximum | N36: Monthly daily mean | O36: Monthly daily maximum
J37: A3 | K37: Jan
K38: Feb
K39: Mar
K40: Apr
K41: May
K42: Jun
K43: Jul
K44: Aug
K45: Sep
K46: Oct
K47: Nov
A48: Comments : | K48: Dec
A49: An indicated ELV value of zero in the table above means that no ammonia limit is set in the permit. | K49: Annual | L49: =AVERAGE(L37:L48) ->  | M49: =MAX(M37:M48) -> 0 | N49: =AVERAGE(N37:N48) ->  | O49: =MAX(O37:O48) -> 0
J51: =+A6 -> 2020 | K51: mg/Nm3 | L51: Monthly 1/2 hourly mean | M51: Monthly 1/2 hourly maximum | N51: Monthly daily mean | O51: Monthly daily maximum
J52: A4 | K52: Jan
K53: Feb
K54: Mar
K55: Apr
K56: May
K57: Jun
K58: Jul
K59: Aug
K60: Sep
K61: Oct
K62: Nov
K63: Dec
K64: Annual | L64: =AVERAGE(L52:L63) ->  | M64: =MAX(M52:M63) -> 0 | N64: =AVERAGE(N52:N63) ->  | O64: =MAX(O52:O63) -> 0
J66: =+A6 -> 2020 | K66: mg/Nm3 | L66: Monthly 1/2 hourly mean | M66: Monthly 1/2 hourly maximum | N66: Monthly daily mean | O66: Monthly daily maximum
J67: A5 | K67: Jan
K68: Feb
K69: Mar
K70: Apr
K71: May
K72: Jun
K73: Jul
K74: Aug
K75: Sep
K76: Oct
K77: Nov
K78: Dec
K79: Annual | L79: =AVERAGE(L67:L78) ->  | M79: =MAX(M67:M78) -> 0 | N79: =AVERAGE(N67:N78) ->  | O79: =MAX(O67:O78) -> 0
